fUST/lending_fUST_20250221
["ID","MTS","AMOUNT","RATE_DAILY","PERIOD"]
[353909004,1740129033017,-500.0,0.0001378,2]
[353909006,1740129033027,-984.4,0.0001378,2]
[353909008,1740129033037,-4468.92,0.0001378,2]
[353909010,1740129033046,-500.0,0.0001378,2]
[353909012,1740129033055,-8207.85,0.0001378,2]
[353909014,1740129033065,-345.14602187,0.0001378,2]
[353909016,1740129033075,-500.0,0.0001378,2]
[353909018,1740129033085,-552.57,0.0001378,2]
[353909020,1740129033095,-500.0,0.0001378,2]
[353909022,1740129033105,-500.0,0.0001378,2]
[353909024,1740129033114,-500.0,0.0001378,2]
[353909026,1740129033123,-528.48,0.0001378,2]
[353909028,1740129033133,-500.0,0.0001378,2]
[353909030,1740129033143,-887.35,0.0001378,2]
[353909032,1740129033152,-500.0,0.0001378,2]
[353909034,1740129033162,-1588.23,0.0001378,2]
[353909036,1740129033172,-243.01779318,0.0001378,2]
[353909038,1740129033182,-500.0,0.0001378,2]
[353909040,1740129033191,-662.99,0.0001378,2]
[353909042,1740129033200,-500.0,0.0001378,2]
[353909044,1740129033209,-8.98007798,0.0001378,2]
[353909046,1740129033222,-491.01992202,0.0001378,2]
[353909048,1740129033231,-3174.83,0.0001378,2]
[353909050,1740129033241,-500.0,0.0001378,2]
[353909052,1740129033250,-549.77,0.0001378,2]
[353909054,1740129033260,-500.0,0.0001378,2]
[353909056,1740129033270,-500.0,0.0001378,2]
[353909058,1740129033279,-500.0,0.0001378,2]
[353909060,1740129033289,-500.0,0.0001378,2]
[353909062,1740129033298,-500.0,0.0001382,2]
[353909064,1740129033308,-754.02,0.0001382,2]
[353909066,1740129033317,-1099.55,0.00013861,2]
[353909068,1740129033326,-513.3,0.00013861,2]
[353909070,1740129033336,-500.0,0.00013861,2]
[353909072,1740129033346,-1525.91,0.00013861,2]
[353909074,1740129033356,-896.21,0.00013863,2]
[353909076,1740129033365,-500.0,0.00013863,2]
[353909078,1740129033375,-984.4,0.00013863,2]
[353909080,1740129033384,-4468.92,0.00013863,2]
[353909082,1740129033394,-500.0,0.00013863,2]
[353909085,1740129033403,-8207.85,0.00013863,2]
[353909086,1740129033413,-500.0,0.00013863,2]
[353909088,1740129033423,-552.57,0.00013863,2]
[353909091,1740129033433,-500.0,0.00013863,2]
[353909092,1740129033442,-500.0,0.00013863,2]
[353909093,1740129033452,-500.0,0.00013863,2]
[353909094,1740129033462,-528.48,0.00013863,2]
[353909095,1740129033472,-500.0,0.00013863,2]
[353909096,1740129033482,-887.35,0.00013863,2]
[353909097,1740129033491,-500.0,0.00013863,2]
[353909098,1740129033502,-1588.23,0.00013863,2]
[353909099,1740129033512,-662.99,0.00013863,2]
[353909100,1740129033522,-500.0,0.00013863,2]
[353909101,1740129033532,-3174.83,0.00013863,2]
[353909102,1740129033541,-500.0,0.00013863,2]
[353909103,1740129033551,-549.77,0.00013863,2]
[353909104,1740129033561,-500.0,0.00013863,2]
[353909105,1740129033571,-500.0,0.00013863,2]
[353909106,1740129033581,-500.0,0.00013863,2]
[353909107,1740129033591,-500.0,0.00013902,2]
[353909108,1740129033600,-754.02,0.00013902,2]
[353909109,1740129033610,-1099.55,0.00013944,2]
[353909110,1740129033621,-513.3,0.00013944,2]
[353909112,1740129033631,-500.0,0.00013944,2]
[353909114,1740129033641,-1525.91,0.00013944,2]
[353909116,1740129033655,-896.21,0.00013945,2]
[353909118,1740129033665,-500.0,0.00013945,2]
[353909120,1740129033675,-984.4,0.00013945,2]
[353909122,1740129033685,-4468.92,0.00013945,2]
[353909124,1740129033696,-500.0,0.00013945,2]
[353909126,1740129033706,-8207.85,0.00013945,2]
[353909128,1740129033715,-500.0,0.00013945,2]
[353909130,1740129033724,-552.57,0.00013945,2]
[353909132,1740129033734,-551.72482616,0.00013945,2]
[353909134,1740129033743,-500.0,0.00013945,2]
[353909136,1740129033752,-500.0,0.00013945,2]
[353909138,1740129033762,-528.48,0.00013945,2]
[353909139,1740129033771,-500.0,0.00013945,2]
[353909141,1740129033780,-887.35,0.00013945,2]
[353909143,1740129033791,-500.0,0.00013945,2]
[353909144,1740129033801,-1588.23,0.00013945,2]
[353909145,1740129033811,-662.99,0.00013945,2]
[353909146,1740129033821,-500.0,0.00013945,2]
[353909147,1740129033830,-3174.83,0.00013945,2]
[353909148,1740129033839,-500.0,0.00013945,2]
[353909149,1740129033848,-549.77,0.00013945,2]
[353909150,1740129033858,-500.0,0.00013945,2]
[353909151,1740129033867,-500.0,0.00013945,2]
[353909152,1740129033877,-500.0,0.00013945,2]
[353909153,1740129033887,-500.0,0.00013984,2]
[353909154,1740129033896,-185.22353075,0.00013984,2]
[353909162,1740129039402,-500.0,0.00013863,2]
[353909163,1740129039412,-500.0,0.00013945,2]
[353909164,1740129039423,-568.79646925,0.00013984,2]
[353909165,1740129039432,-3000.0,0.00014009,2]
[353909166,1740129039442,-1099.55,0.00014026,2]
[353909167,1740129039451,-513.3,0.00014026,2]
[353909168,1740129039460,-500.0,0.00014026,2]
[353909169,1740129039469,-1525.91,0.00014026,2]
[353909170,1740129039478,-896.21,0.00014027,2]
[353909171,1740129039488,-500.0,0.00014027,2]
[353909172,1740129039497,-984.4,0.00014027,2]
[353909173,1740129039507,-4468.92,0.00014027,2]
[353909174,1740129039516,-500.0,0.00014027,2]
[353909175,1740129039525,-8207.85,0.00014027,2]
[353909176,1740129039534,-500.0,0.00014027,2]
[353909177,1740129039543,-552.57,0.00014027,2]
[353909178,1740129039553,-500.0,0.00014027,2]
[353909179,1740129039562,-500.0,0.00014027,2]
[353909180,1740129039571,-528.48,0.00014027,2]
[353909181,1740129039581,-500.0,0.00014027,2]
[353909182,1740129039590,-887.35,0.00014027,2]
[353909183,1740129039599,-500.0,0.00014027,2]
[353909184,1740129039608,-1588.23,0.00014027,2]
[353909185,1740129039618,-662.99,0.00014027,2]
[353909186,1740129039627,-500.0,0.00014027,2]
[353909187,1740129039636,-3174.83,0.00014027,2]
[353909188,1740129039650,-500.0,0.00014027,2]
[353909189,1740129039659,-549.77,0.00014027,2]
[353909190,1740129039668,-500.0,0.00014027,2]
[353909191,1740129039678,-500.0,0.00014027,2]
[353909192,1740129039687,-500.0,0.00014027,2]
[353909193,1740129039697,-500.0,0.00014027,2]
[353909194,1740129039708,-500.0,0.00014066,2]
[353909195,1740129039717,-754.02,0.00014066,2]
[353909196,1740129039729,-1102.9708592,0.00014068,2]
[353909197,1740129039740,-1099.55,0.00014108,2]
[353909198,1740129039750,-513.3,0.00014108,2]
[353909199,1740129039759,-195.75000402,0.00014108,2]
[353909200,1740129039768,-1525.91,0.00014108,2]
[353909201,1740129039777,-896.21,0.00014109,2]
[353909202,1740129039788,-500.0,0.00014109,2]
[353909203,1740129039798,-984.4,0.00014109,2]
[353909204,1740129039807,-4468.92,0.00014109,2]
[353909205,1740129039817,-500.0,0.00014109,2]
[353909206,1740129039829,-8207.85,0.00014109,2]
[353909207,1740129039838,-500.0,0.00014109,2]
[353909208,1740129039847,-552.57,0.00014109,2]
[353909209,1740129039858,-500.0,0.00014109,2]
[353909210,1740129039867,-395.24488847,0.00014109,2]
[353909211,1740129039876,-528.48,0.00014109,2]
[353909212,1740129039885,-500.0,0.00014109,2]
[353909213,1740129039895,-887.35,0.00014109,2]
[353909214,1740129039904,-500.0,0.00014109,2]
[353909215,1740129039914,-1588.23,0.00014109,2]
[353909216,1740129039924,-662.99,0.00014109,2]
[353909217,1740129039933,-500.0,0.00014109,2]
[353909218,1740129039942,-500.0,0.00014109,2]
[353909219,1740129039952,-3174.83,0.00014109,2]
[353909220,1740129039962,-549.77,0.00014109,2]
[353909221,1740129039981,-500.0,0.00014109,2]
[353909222,1740129039989,-500.0,0.00014109,2]
[353909223,1740129039998,-500.0,0.00014109,2]
[353909224,1740129040007,-500.0,0.00014109,2]
[353909225,1740129040016,-500.0,0.00014148,2]
[353909226,1740129040025,-754.02,0.00014148,2]
[353909227,1740129040034,-500.0,0.00014173,2]
[353909228,1740129040044,-518.73600501,0.00014173,2]
[353909229,1740129040053,-510.21662981,0.00014173,2]
[353909230,1740129040063,-1099.55,0.0001419,2]
[353909231,1740129040072,-513.3,0.0001419,2]
[353909232,1740129040082,-1525.91,0.0001419,2]
[353909233,1740129040091,-896.21,0.00014191,2]
[353909234,1740129040100,-500.0,0.00014191,2]
[353909235,1740129040109,-984.4,0.00014191,2]
[353909236,1740129040118,-4468.92,0.00014191,2]
[353909237,1740129040127,-500.0,0.00014191,2]
[353909238,1740129040136,-8207.85,0.00014191,2]
[353909239,1740129040146,-500.0,0.00014191,2]
[353909240,1740129040155,-552.57,0.00014191,2]
[353909241,1740129040165,-500.0,0.00014191,2]
[353909242,1740129040174,-528.48,0.00014191,2]
[353909243,1740129040183,-500.0,0.00014191,2]
[353909244,1740129040192,-887.35,0.00014191,2]
[353909245,1740129040200,-500.0,0.00014191,2]
[353909246,1740129040209,-1588.23,0.00014191,2]
[353909247,1740129040218,-662.99,0.00014191,2]
[353909248,1740129040227,-500.0,0.00014191,2]
[353909249,1740129040236,-3174.83,0.00014191,2]
[353909250,1740129040246,-500.0,0.00014191,2]
[353909251,1740129040255,-549.77,0.00014191,2]
[353909253,1740129040264,-500.0,0.00014191,2]
[353909254,1740129040273,-500.0,0.00014191,2]
[353909255,1740129040282,-500.0,0.00014191,2]
[353909256,1740129040291,-500.0,0.00014191,2]
[353909257,1740129040300,-500.0,0.0001423,2]
[353909258,1740129040309,-754.02,0.0001423,2]
[353909260,1740129040318,-500.0,0.0001425,2]
[353909261,1740129040327,-1099.55,0.00014272,2]
[353909262,1740129040336,-513.3,0.00014272,2]
[353909263,1740129040346,-1525.91,0.00014272,2]
[353909264,1740129040355,-896.21,0.00014273,2]
[353909265,1740129040364,-500.0,0.00014273,2]
[353909266,1740129040373,-500.0,0.00014273,2]
[353909267,1740129040382,-500.0,0.00014273,2]
[353909268,1740129040391,-500.0,0.00014273,2]
[353909269,1740129040400,-726.0,0.00014273,2]
[353909270,1740129040409,-984.4,0.00014273,2]
[353909271,1740129040419,-4468.92,0.00014273,2]
[353909273,1740129040429,-500.0,0.00014273,2]
[353909275,1740129040438,-500.0,0.00014273,2]
[353909276,1740129040447,-150.18,0.00014273,2]
[353909277,1740129040457,-500.0,0.00014273,2]
[353909278,1740129040466,-150.18,0.00014273,2]
[353909280,1740129040475,-8207.85,0.00014273,2]
[353909282,1740129040484,-500.0,0.00014273,2]
[353909283,1740129040493,-552.57,0.00014273,2]
[353909284,1740129040502,-500.0,0.00014273,2]
[353909285,1740129040511,-528.48,0.00014273,2]
[353909286,1740129040521,-500.0,0.00014273,2]
[353909288,1740129040530,-887.35,0.00014273,2]
[353909290,1740129040539,-500.0,0.00014273,2]
[353909291,1740129040548,-1588.23,0.00014273,2]
[353909292,1740129040558,-662.99,0.00014273,2]
[353909293,1740129040567,-500.0,0.00014273,2]
[353909294,1740129040576,-3174.83,0.00014273,2]
[353909295,1740129040586,-407.5286841,0.00014273,2]
[353909296,1740129040598,-92.4713159,0.00014273,2]
[353909297,1740129040608,-549.77,0.00014273,2]
[353909298,1740129040616,-500.0,0.00014273,2]
[353909299,1740129040625,-447.0169891,0.00014273,2]
[353909300,1740129040636,-194.44506611,0.00014273,2]
[353909301,1740129040649,-500.0,0.00014273,2]
[353909302,1740129040658,-500.0,0.00014273,2]
[353909303,1740129040667,-500.0,0.00014313,2]
[353909304,1740129040676,-754.02,0.00014313,2]
[353909305,1740129040685,-500.0,0.00014328,2]
[353909306,1740129040696,-7438.69753278,0.00014344,2]
[353909307,1740129040705,-390.67239875,0.00014355,2]
[353909308,1740129040715,-1099.55,0.00014355,2]
[353909309,1740129040725,-513.3,0.00014355,2]
[353909310,1740129040734,-1525.91,0.00014355,2]
[353909311,1740129040743,-606.55,0.00014356,2]
[353909312,1740129040752,-2664.15,0.00014356,2]
[353909313,1740129040762,-896.21,0.00014356,2]
[353909314,1740129040771,-500.0,0.00014356,2]
[353909315,1740129040780,-984.4,0.00014356,2]
[353909316,1740129040789,-4468.92,0.00014356,2]
[353909317,1740129040799,-500.0,0.00014356,2]
[353909318,1740129040809,-8207.85,0.00014356,2]
[353909319,1740129040818,-500.0,0.00014356,2]
[353909320,1740129040827,-552.57,0.00014356,2]
[353909321,1740129040837,-500.0,0.00014356,2]
[353909322,1740129040846,-528.48,0.00014356,2]
[353909323,1740129040856,-500.0,0.00014356,2]
[353909324,1740129040865,-887.35,0.00014356,2]
[353909325,1740129040874,-500.0,0.00014356,2]
[353909326,1740129040884,-1588.23,0.00014356,2]
[353909327,1740129040893,-662.99,0.00014356,2]
[353909328,1740129040902,-500.0,0.00014356,2]
[353909329,1740129040911,-3174.83,0.00014356,2]
[353909330,1740129040921,-500.0,0.00014356,2]
[353909331,1740129040930,-549.77,0.00014356,2]
[353909332,1740129040939,-500.0,0.00014356,2]
[353909333,1740129040948,-500.0,0.00014356,2]
[353909334,1740129040957,-500.0,0.00014356,2]
[353909335,1740129040966,-160.0,0.0001436,5]
[353909336,1740129040976,-500.0,0.00014395,2]
[353909337,1740129040986,-754.02,0.00014395,2]
[353909338,1740129040995,-151.0,0.000144,2]
[353909339,1740129041005,-151.0,0.000144,2]
[353909340,1740129041014,-69003.53926851,0.0001443,2]
[353909341,1740129041023,-1099.55,0.00014437,2]
[353909342,1740129041032,-513.3,0.00014437,2]
[353909343,1740129041041,-1525.91,0.00014437,2]
[353909344,1740129041050,-513.11,0.00014438,2]
[353909345,1740129041059,-558.68,0.00014438,2]
[353909346,1740129041068,-500.0,0.00014438,2]
[353909347,1740129041077,-500.0,0.00014438,2]
[353909348,1740129041086,-500.0,0.00014438,2]
[353909349,1740129041096,-500.0,0.00014438,2]
[353909350,1740129041105,-551.84624587,0.00014438,2]
[353909351,1740129041116,-606.55,0.00014438,2]
[353909352,1740129041125,-2664.15,0.00014438,2]
[353909353,1740129041134,-896.21,0.00014438,2]
[353909354,1740129041143,-500.0,0.00014438,2]
[353909355,1740129041152,-984.4,0.00014438,2]
[353909356,1740129041161,-4468.92,0.00014438,2]
[353909357,1740129041170,-500.0,0.00014438,2]
[353909358,1740129041179,-8207.85,0.00014438,2]
[353909359,1740129041188,-500.0,0.00014438,2]
[353909360,1740129041197,-552.57,0.00014438,2]
[353909361,1740129041206,-500.0,0.00014438,2]
[353909362,1740129041215,-528.48,0.00014438,2]
[353909363,1740129041224,-500.0,0.00014438,2]
[353909364,1740129041328,-887.35,0.00014438,2]
[353909365,1740129041337,-500.0,0.00014438,2]
[353909366,1740129041346,-1588.23,0.00014438,2]
[353909367,1740129041355,-662.99,0.00014438,2]
[353909368,1740129041364,-500.0,0.00014438,2]
[353909369,1740129041373,-3174.83,0.00014438,2]
[353909370,1740129041382,-500.0,0.00014438,2]
[353909371,1740129041391,-549.77,0.00014438,2]
[353909372,1740129041399,-500.0,0.00014438,2]
[353909373,1740129041408,-500.0,0.00014438,2]
[353909374,1740129041418,-500.0,0.00014438,2]
[353909375,1740129041427,-447.11093653,0.00014477,2]
[353909376,1740129041439,-754.02,0.00014477,2]
[353909377,1740129041447,-168.40801011,0.00014493,2]
[353909378,1740129041457,-2005.0,0.000145,5]
[353909379,1740129041466,-1099.55,0.00014519,2]
[353909380,1740129041475,-513.3,0.00014519,2]
[353909381,1740129041484,-1525.91,0.00014519,2]
[353909382,1740129041493,-212.750623,0.0001452,2]
[353909383,1740129041503,-212.750623,0.0001452,2]
[353909384,1740129041512,-151.0,0.0001452,2]
[353909385,1740129041521,-151.0,0.0001452,2]
[353909386,1740129041530,-513.11,0.0001452,2]
[353909387,1740129041540,-558.68,0.0001452,2]
[353909388,1740129041549,-516.93162353,0.0001452,2]
[353909389,1740129041558,-500.0,0.0001452,2]
[353909390,1740129041567,-500.0,0.0001452,2]
[353909391,1740129041576,-500.0,0.0001452,2]
[353909392,1740129041585,-606.55,0.0001452,2]
[353909393,1740129041594,-2664.15,0.0001452,2]
[353909394,1740129041604,-896.21,0.0001452,2]
[353909395,1740129041613,-564.80602548,0.0001452,2]
[353909396,1740129041622,-984.4,0.0001452,2]
[353909397,1740129041631,-4468.92,0.0001452,2]
[353909398,1740129041640,-500.0,0.0001452,2]
[353909399,1740129041653,-8207.85,0.0001452,2]
[353909400,1740129041662,-500.0,0.0001452,2]
[353909401,1740129041671,-552.57,0.0001452,2]
[353909402,1740129041680,-500.0,0.0001452,2]
[353909403,1740129041689,-528.48,0.0001452,2]
[353909404,1740129041698,-500.0,0.0001452,2]
[353909405,1740129041707,-887.35,0.0001452,2]
[353909406,1740129041716,-500.0,0.0001452,2]
[353909407,1740129041727,-1588.23,0.0001452,2]
[353909408,1740129041735,-662.99,0.0001452,2]
[353909409,1740129041744,-500.0,0.0001452,2]
[353909410,1740129041754,-3174.83,0.0001452,2]
[353909411,1740129041763,-500.0,0.0001452,2]
[353909412,1740129041772,-549.77,0.0001452,2]
[353909413,1740129041782,-500.0,0.0001452,2]
[353909414,1740129041791,-500.0,0.0001452,2]
[353909415,1740129041800,-500.0,0.0001452,2]
[353909416,1740129041809,-166.7440985,0.00014524,2]
[353909417,1740129041818,-500.0,0.00014547,2]
[353909418,1740129041827,-649.98511231,0.00014547,2]
[353909419,1740129041836,-640.07484357,0.00014547,2]
[353909420,1740129041845,-726.0,0.00014547,2]
[353909421,1740129041854,-500.0,0.00014547,2]
[353909422,1740129041863,-948.39673217,0.00014547,2]
[353909423,1740129041872,-150.18,0.00014547,2]
[353909424,1740129041881,-754.02,0.00014559,2]
[353909425,1740129041890,-500.0,0.00014561,2]
[353909426,1740129041899,-162.0,0.00014568,2]
[353909427,1740129041908,-164.58693344,0.00014568,2]
[353909428,1740129041917,-183.43544243,0.00014568,2]
[353909429,1740129041926,-12593.90816382,0.00014569,2]
[353909430,1740129041936,-179.973181,0.00014582,7]
[353909431,1740129041945,-160.0,0.00014586,6]
[353909432,1740129041954,-311.0,0.0001459,2]
[353909433,1740129041963,-1099.55,0.00014601,2]
[353909434,1740129041972,-513.3,0.00014601,2]
[353909435,1740129041981,-1525.91,0.00014601,2]
[353909436,1740129041990,-513.11,0.00014602,2]
[353909437,1740129042000,-558.68,0.00014602,2]
[353909438,1740129042010,-500.0,0.00014602,2]
[353909439,1740129042021,-151.0,0.00014602,2]
[353909440,1740129042030,-500.0,0.00014602,2]
[353909441,1740129042039,-500.0,0.00014602,2]
[353909442,1740129042049,-606.55,0.00014602,2]
[353909443,1740129042058,-2664.15,0.00014602,2]
[353909444,1740129042068,-896.21,0.00014602,2]
[353909445,1740129042078,-984.4,0.00014602,2]
[353909446,1740129042088,-4468.92,0.00014602,2]
[353909447,1740129042097,-500.0,0.00014602,2]
[353909448,1740129042106,-8207.85,0.00014602,2]
[353909449,1740129042115,-500.0,0.00014602,2]
[353909450,1740129042125,-552.57,0.00014602,2]
[353909451,1740129042134,-500.0,0.00014602,2]
[353909452,1740129042143,-528.48,0.00014602,2]
[353909453,1740129042152,-500.0,0.00014602,2]
[353909454,1740129042161,-887.35,0.00014602,2]
[353909455,1740129042170,-500.0,0.00014602,2]
[353909456,1740129042179,-1588.23,0.00014602,2]
[353909457,1740129042190,-662.99,0.00014602,2]
[353909458,1740129042199,-500.0,0.00014602,2]
[353909459,1740129042208,-3174.83,0.00014602,2]
[353909460,1740129042218,-500.0,0.00014602,2]
[353909461,1740129042227,-549.77,0.00014602,2]
[353909462,1740129042237,-500.0,0.00014602,2]
[353909463,1740129042246,-500.0,0.00014602,2]
[353909464,1740129042256,-500.0,0.00014602,2]
[353909465,1740129042265,-500.99293683,0.00014607,2]
[353909466,1740129042274,-297.112,0.00014635,2]
[353909467,1740129042286,-414.883,0.00014635,2]
[353909468,1740129042296,-754.02,0.00014641,2]
[353909469,1740129042305,-151.0,0.00014683,2]
[353909470,1740129042315,-1099.55,0.00014683,2]
[353909471,1740129042325,-513.3,0.00014683,2]
[353909472,1740129042334,-1525.91,0.00014683,2]
[353909473,1740129042343,-212.750623,0.00014684,2]
[353909474,1740129042352,-212.750623,0.00014684,2]
[353909475,1740129042361,-151.0,0.00014684,2]
[353909476,1740129042371,-151.0,0.00014684,2]
[353909477,1740129042380,-513.11,0.00014684,2]
[353909478,1740129042390,-558.68,0.00014684,2]
[353909479,1740129042400,-500.0,0.00014684,2]
[353909480,1740129042409,-500.0,0.00014684,2]
[353909481,1740129042420,-186.61176406,0.00014684,2]
[353909482,1740129042429,-606.55,0.00014684,2]
[353909483,1740129042439,-2664.15,0.00014684,2]
[353909484,1740129042448,-896.21,0.00014684,2]
[353909485,1740129042458,-984.4,0.00014684,2]
[353909486,1740129042467,-4468.92,0.00014684,2]
[353909487,1740129042476,-500.0,0.00014684,2]
[353909488,1740129042486,-8207.85,0.00014684,2]
[353909489,1740129042495,-500.0,0.00014684,2]
[353909490,1740129042505,-552.57,0.00014684,2]
[353909491,1740129042514,-500.0,0.00014684,2]
[353909492,1740129042527,-528.48,0.00014684,2]
[353909493,1740129042536,-500.0,0.00014684,2]
[353909494,1740129042546,-887.35,0.00014684,2]
[353909495,1740129042555,-500.0,0.00014684,2]
[353909496,1740129042565,-1588.23,0.00014684,2]
[353909497,1740129042574,-662.99,0.00014684,2]
[353909498,1740129042584,-500.0,0.00014684,2]
[353909499,1740129042593,-3174.83,0.00014684,2]
[353909500,1740129042603,-500.0,0.00014684,2]
[353909501,1740129042612,-549.77,0.00014684,2]
[353909502,1740129042621,-500.0,0.00014684,2]
[353909503,1740129042631,-500.0,0.00014684,2]
[353909504,1740129042640,-500.0,0.00014684,2]
[353909505,1740129042653,-168.40801011,0.00014685,2]
[353909506,1740129042663,-150.0,0.00014687,2]
[353909507,1740129042672,-150.049,0.00014687,2]
[353909508,1740129042681,-150.283,0.00014687,2]
[353909509,1740129042691,-248.318,0.00014687,2]
[353909510,1740129042700,-150.0,0.00014687,2]
[353909511,1740129042709,-150.065,0.00014687,2]
[353909512,1740129042718,-279.694,0.00014687,2]
[353909513,1740129042729,-150.605,0.00014687,2]
[353909514,1740129042739,-1969.0,0.00014687,2]
[353909515,1740129042749,-538.0,0.00014687,2]
[353909516,1740129042759,-2288.0,0.00014687,2]
[353909517,1740129042769,-500.0,0.00014699,2]
[353909518,1740129042778,-272.86940529,0.00014699,2]
[353909519,1740129042788,-202.25565459,0.00014699,2]
[353909520,1740129042797,-500.0,0.00014699,2]
[353909521,1740129042807,-500.0,0.00014699,2]
[353909522,1740129042817,-419.45119119,0.00014699,2]
[353909523,1740129042826,-160.0,0.00014699,2]
[353909524,1740129042836,-43130.60845599,0.000147,5]
[353909525,1740129042851,-1540.28423873,0.000147,5]
[353909548,1740129043859,-13825.023047,0.000147,5]
[353909549,1740129044497,-84574.84153409,0.000147,5]
[353909557,1740129046473,-260.44826583,0.00014355,2]
[353909558,1740129046482,-2085.64112817,0.000147,5]
[353909559,1740129048338,-42781.788671,0.000147,5]
[353909560,1740129048418,-80220.00005,0.000147,5]
[353909561,1740129084233,186.359999,9.041e-05,2]
[353909563,1740129686973,1000.0,0.00014,14]
[353909564,1740129694343,1000.0,0.00019,120]
[353909574,1740130076324,9875.28791998,0.00017925,60]
[353909580,1740130111775,384492.98497459,0.00017934,60]
[353909581,1740130114113,1079.29552904,0.00017934,90]
[353909641,1740130232779,-500.0,0.00011588,2]
[353909642,1740130232793,-284.79285595,0.00012454,2]
[353909643,1740130232802,-300.0,0.00012754,2]
[353909644,1740130232812,-4686.44991224,0.00012755,2]
[353909645,1740130232823,-1074.8985,0.00012755,2]
[353909668,1740130238753,-1088.31219625,0.00012755,2]
[353909676,1740130240980,-2810.46941918,0.00012755,2]
[353909718,1740130243794,-999.38107724,0.00012755,2]
[353909741,1740130246641,-1821.3000001,0.00012755,2]
[353909744,1740130348703,185.355278,9.041e-05,2]
[353909746,1740130386014,400.0,0.00013699,7]
[353909748,1740130484323,165.494269,0.00012701,15]
[353909749,1740130484835,165.494269,0.00012701,28]
[353909750,1740130485037,165.494269,0.00012701,41]
[353909751,1740130485432,165.494269,0.00012701,54]
[353909752,1740130485841,165.494269,0.00012701,67]
[353909753,1740130486049,165.494269,0.00012701,80]
[353909754,1740130486454,165.494269,0.00012701,93]
[353909755,1740130486657,165.494269,0.00012701,106]
[353909756,1740130487000,165.494269,0.00012701,119]
[353909757,1740130647928,1830.094,0.00019,120]
[353909762,1740131151094,-500.0,0.00011588,2]
[353909763,1740131151115,-7673.6294498,0.00012584,2]
[353909764,1740131151137,-300.0,0.00012593,2]
[353909765,1740131151158,-13276.64253133,0.00012594,2]
[353909766,1740131151179,-165.494269,0.00012701,2]
[353909767,1740131151200,-10763.21405838,0.000135,2]
[353909768,1740131151221,-536.63152123,0.00013511,2]
[353909769,1740131151240,-6903.18334522,0.000136,3]
[353909770,1740131151262,-998.80143827,0.00013698,2]
[353909771,1740131151284,-260.97230847,0.00013698,2]
[353909772,1740131151304,-445.51770074,0.00013698,2]
[353909773,1740131151325,-505.57659089,0.00013698,2]
[353909774,1740131151351,-500.0,0.00013698,2]
[353909775,1740131151373,-501.85344678,0.00013698,2]
[353909776,1740131151393,-500.0,0.00013698,2]
[353909777,1740131151416,-500.0,0.00013698,2]
[353909778,1740131151437,-501.17016285,0.00013698,2]
[353909779,1740131151458,-500.0,0.00013698,2]
[353909780,1740131151478,-502.16157905,0.00013698,2]
[353909781,1740131151500,-500.0,0.00013698,2]